Workbook

Sheet 附件三10月份特困保障金
A1: 附件3：
A2: 永春县2025年10月份特困人员保障金发放情况表
A3: 序号 | B3: 乡镇 | C3: 特困户数 | D3: 农村分散供养人数 | E3: 月保障资金 | F3: 农村集中供养人数 | G3: 月保障资金 | H3: 城镇分散供养人数 | I3: 月保障资金 | J3: 城镇集中供养人数 | K3: 月保障资金 | L3: 照顾护理标准 | S3: 合计 | AI3: 备注
L5: 全自理分散 | M5: 全自理集中 | N5: 半护理分散 | O5: 半护理集中 | P5: 全护理分散 | Q5: 全护理集中 | R5: 小计金额 | U5: 安康医院 | W5: 伍心养老服务有限公司 | Y5: 永春县伊护航家养老管理有限责任公司 | AA5: 德化县盈康源敬老院 | AC5: 德化县新爱心养老院 | AE5: 福建省永春美岭医院有限公司 | AG5: 银行
S6: 人数 | T6: 金额 | U6: 人数 | V6: 金额 | W6: 人数 | X6: 金额 | Y6: 人数 | Z6: 金额 | AA6: 人数 | AB6: 金额 | AC6: 人数 | AD6: 金额 | AE6: 人数 | AF6: 金额 | AG6: 人数 | AH6: 金额
C7: 户 | D7: 人 | E7: 元 | F7: 人 | G7: 元 | H7: 人 | I7: 元 | J7: 人 | K7: 元 | L7: 元 | M7: 元 | N7: 元 | O7: 元 | P7: 元 | Q7: 元 | R7: 元 | S7: 人 | T7: 元 | U7: 人 | V7: 元 | AG7: 人 | AH7: 元
A8: 1 | B8: 桃城镇 | C8: 59 | D8: 31 | E8: =D8*1099 -> 34069 | F8: 8 | G8: =F8*1648 -> 13184 | H8: 3 | I8: =H8*1099 -> 3297 | J8: 17 | K8: =J8*1648 -> 28016 | L8: 5330 | M8: 307 | N8: 4088 | O8: 2301 | Q8: 32214 | R8: =L8+M8+N8+O8+P8+Q8 -> 44240 | S8: =D8+F8+H8+J8 -> 59 | T8: =E8+G8+I8+K8+R8 -> 122806 | U8: 21 | V8: =U8*3182 -> 66822 | W8: 4 | X8: 9200 | AG8: =S8-U8-W8-Y8-AA8-AC8-AE8 -> 34 | AH8: =T8-V8-X8-Z8-AB8-AD8-AF8 -> 46784
A9: 2 | B9: 五里街镇 | C9: 24 | D9: 11 | E9: 12089 | F9: 13 | G9: 21424 | L9: 1025 | N9: 1533 | O9: 767 | P9: 3069 | Q9: 18408 | R9: 24802 | S9: 24 | T9: 58315 | U9: 8 | V9: 25456 | W9: 4 | X9: 11961 | Y9: 1 | Z9: 3182 | AG9: 11 | AH9: 17716
A10: 3 | B10: 一都镇 | C10: 5 | D10: 2 | E10: 2198 | F10: 3 | G10: 4944 | N10: 1022 | Q10: 4602 | R10: 5624 | S10: 5 | T10: 12766 | U10: 3 | V10: 9546 | AG10: 2 | AH10: 3220
A11: 4 | B11: 下洋镇 | C11: 3 | D11: 1 | E11: 1099 | F11: 2 | G11: 3296 | N11: 511 | Q11: 3068 | R11: 3579 | S11: 3 | T11: 7974 | U11: 2 | V11: 6364 | AG11: 1 | AH11: 1610
A12: 5 | B12: 蓬壶镇 | C12: 83 | D12: 71 | E12: 78029 | F12: 15 | G12: 24720 | L12: 10865 | N12: 9198 | Q12: 23010 | R12: 43073 | S12: 86 | T12: 145822 | U12: 10 | V12: 31820 | W12: 4 | X12: 12728 | AC12: 1 | AD12: 3182 | AG12: 71 | AH12: 98092
A13: 6 | B13: 达埔镇 | C13: 85 | D13: 70 | E13: 76930 | F13: 14 | G13: 23072 | H13: 1 | I13: 1099 | L13: 10045 | M13: 307 | N13: 8687 | P13: 5115 | Q13: 19942 | R13: 44096 | S13: 85 | T13: 145197 | U13: 8 | V13: 25456 | W13: 5 | X13: 14683 | Y13: 1 | Z13: 3182 | AG13: 71 | AH13: 101876
A14: 7 | B14: 石鼓镇 | C14: 38 | D14: 26 | E14: 28574 | F14: 10 | G14: 16480 | J14: 2 | K14: =J14*1648 -> 3296 | L14: 2870 | N14: 6132 | O14: 767 | Q14: 16874 | R14: 26643 | S14: 38 | T14: 74993 | U14: 10 | V14: 31820 | W14: 2 | X14: 5597 | AG14: 26 | AH14: 37576
A15: 8 | B15: 岵山镇 | C15: 53 | D15: 39 | E15: 42861 | F15: 14 | G15: 23072 | L15: 6560 | M15: 1228 | N15: 3066 | O15: 1534 | P15: 1023 | Q15: 12272 | R15: 25683 | S15: 53 | T15: 91616 | U15: 6 | V15: 19092 | W15: 1 | X15: 3182 | AG15: 46 | AH15: 69342
A16: 9 | B16: 湖洋镇 | C16: 44 | D16: 37 | E16: 40663 | F16: 7 | G16: 11536 | L16: 6150 | N16: 2555 | P16: 2046 | Q16: 10738 | R16: 21489 | S16: 44 | T16: 73688 | U16: 3 | V16: 9546 | W16: 4 | X16: 12728 | AG16: 37 | AH16: 51414
A17: 10 | B17: 坑仔口镇 | C17: 9 | D17: 7 | E17: 7693 | F17: 2 | G17: 3296 | L17: 1025 | N17: 1022 | Q17: 3068 | R17: 5115 | S17: 9 | T17: 16104 | U17: 1 | V17: 3182 | W17: 1 | X17: 3182 | AG17: 7 | AH17: 9740
A18: 11 | B18: 桂洋镇 | C18: 19 | D18: 19 | E18: 20881 | L18: 2665 | N18: 2044 | P18: 2046 | R18: 6755 | S18: 19 | T18: 27636 | AG18: 19 | AH18: 27636
A19: 12 | B19: 吾峰镇 | C19: 41 | D19: 38 | E19: 41762 | F19: 4 | G19: =F19*1648 -> 6592 | L19: 5945 | N19: 4599 | Q19: 6136 | R19: 16680 | S19: 42 | T19: 65034 | U19: 3 | V19: =U19*3182 -> 9546 | AE19: 1 | AF19: 3182 | AG19: 38 | AH19: 52306
A20: 13 | B20: 东平镇 | C20: 37 | D20: 35 | E20: 38465 | F20: 3 | G20: 4944 | L20: 5125 | N20: 4088 | P20: 2046 | Q20: 4602 | R20: 15861 | S20: 38 | T20: 59270 | U20: 3 | V20: 9546 | AG20: 35 | AH20: 49724
A21: 14 | B21: 玉斗镇 | C21: 9 | D21: 8 | E21: 8792 | F21: 1 | G21: 1648 | L21: 820 | N21: 2044 | Q21: 1534 | R21: 4398 | S21: 9 | T21: 14838 | U21: 1 | V21: 3182 | AG21: 8 | AH21: 11656
A22: 15 | B22: 锦斗镇 | C22: 17 | D22: 12 | E22: 13188 | F22: 5 | G22: 8240 | L22: 1845 | N22: 1533 | Q22: 7670 | R22: 11048 | S22: 17 | T22: 32476 | U22: 3 | V22: 9546 | W22: 2 | X22: 6364 | AG22: 12 | AH22: 16566
A23: 16 | B23: 东关镇 | C23: 32 | D23: 17 | E23: 18683 | F23: 13 | G23: 21424 | H23: 1 | I23: =H23*1099 -> 1099 | J23: 1 | K23: =J23*1648 -> 1648 | L23: 2870 | N23: 2044 | O23: 2301 | Q23: 16874 | R23: 24089 | S23: 32 | T23: 66943 | U23: 8 | V23: 25456 | W23: 4 | X23: 11961 | Y23: 2 | Z23: 4830 | AG23: 18 | AH23: 24696
A24: 17 | B24: 苏坑镇 | C24: 35 | D24: 30 | E24: 32970 | F24: 5 | G24: 8240 | L24: 5330 | N24: 2044 | Q24: 7670 | R24: 15044 | S24: 35 | T24: 56254 | U24: 5 | V24: 15910 | AG24: 30 | AH24: 40344
A25: 18 | B25: 仙夹镇 | C25: 15 | D25: 11 | E25: 12089 | F25: 4 | G25: 6592 | L25: 1640 | N25: 1533 | Q25: 6136 | R25: 9309 | S25: 15 | T25: 27990 | U25: 3 | V25: 9546 | Y25: 1 | Z25: 3182 | AG25: 11 | AH25: 15262
A26: 19 | B26: 横口乡 | C26: 19 | D26: 16 | E26: 17584 | F26: 3 | G26: 4944 | L26: 1640 | N26: 3066 | P26: 2046 | Q26: 4602 | R26: 11354 | S26: 19 | T26: 33882 | U26: 2 | V26: 6364 | W26: 1 | X26: 3182 | AG26: 16 | AH26: 24336
A27: 20 | B27: 介福乡 | C27: 21 | D27: 17 | E27: 18683 | F27: 4 | G27: 6592 | L27: 2665 | N27: 511 | P27: 3069 | Q27: 6136 | R27: 12381 | S27: 21 | T27: 37656 | U27: 3 | V27: 9546 | AA27: 1 | AB27: 3182 | AG27: 17 | AH27: 24928
A28: 21 | B28: 呈祥乡 | C28: 23 | D28: 21 | E28: 23079 | F28: 2 | G28: 3296 | L28: 3280 | N28: 1022 | P28: 3069 | Q28: 3068 | R28: 10439 | S28: 23 | T28: 36814 | U28: 1 | V28: 3182 | W28: 1 | X28: 3182 | AG28: 21 | AH28: 30450
A29: 22 | B29: 外山乡 | C29: 3 | D29: 2 | E29: 2198 | F29: 1 | G29: 1648 | L29: 410 | Q29: 1534 | R29: 1944 | S29: 3 | T29: 5790 | U29: 1 | V29: 3182 | AG29: 2 | AH29: 2608
B30: 合计 | C30: =SUM(C8:C29) -> 674 | D30: 521 | E30: 572579 | F30: 133 | G30: 219184 | H30: 5 | I30: 5495 | J30: 20 | K30: 32960 | L30: 78105 | M30: 1842 | N30: 62342 | O30: 7670 | P30: 23529 | Q30: 210158 | R30: 383646 | S30: 679 | T30: 1213864 | U30: 105 | V30: 334110 | W30: 33 | X30: 97950 | Y30: =SUM(Y7:Y29) -> 5 | Z30: 14376 | AA30: 1 | AB30: 3182 | AC30: 1 | AD30: 3182 | AE30: 1 | AF30: 3182 | AG30: 533 | AH30: =SUM(AH8:AH29) -> 757882
